fUSD/lending_fUSD_20240918
["ID","MTS","AMOUNT","RATE_DAILY","PERIOD"]
[338486175,1726696240547,-151.0,0.00013,2]
[338486176,1726696240558,-151.0,0.00013,2]
[338486177,1726696240568,-151.0,0.00013,2]
[338486178,1726696240578,-151.0,0.00013,2]
[338486179,1726696240588,-151.0,0.00013,2]
[338486180,1726696240599,-151.0,0.00013,2]
[338486181,1726696240608,-151.0,0.00013,2]
[338486182,1726696240618,-151.0,0.00013,2]
[338486183,1726696240628,-635.37935566,0.00013,2]
[338486184,1726696240638,-151.0,0.00013,2]
[338486185,1726696240648,-151.0,0.00013,2]
[338486186,1726696240658,-151.0,0.00013,2]
[338486187,1726696240668,-151.0,0.00013,2]
[338486188,1726696240679,-151.0,0.00013,2]
[338486189,1726696240689,-151.0,0.00013,2]
[338486190,1726696240699,-151.0,0.00013,2]
[338486191,1726696240708,-259.675844,0.00013,2]
[338486192,1726696240718,-151.0,0.00013,2]
[338486193,1726696240728,-151.0,0.00013,2]
[338486194,1726696240738,-151.0,0.00013,2]
[338486195,1726696240748,-151.0,0.00013,2]
[338486196,1726696240758,-151.0,0.00013,2]
[338486197,1726696240768,-151.0,0.00013,2]
[338486198,1726696240778,-282.514903,0.00013,2]
[338486199,1726696240787,-151.0,0.00013,2]
[338486200,1726696240797,-151.0,0.00013,2]
[338486201,1726696240807,-160.992069,0.00013,2]
[338486202,1726696240816,-160.992069,0.00013,2]
[338486203,1726696240826,-151.0,0.00013,2]
[338486204,1726696240836,-151.0,0.00013,2]
[338486205,1726696240847,-151.0,0.00013,2]
[338486206,1726696240858,-151.0,0.00013,2]
[338486207,1726696240868,-160.992069,0.00013,2]
[338486208,1726696240878,-160.992069,0.00013,2]
[338486210,1726696240889,-151.218999,0.00013,2]
[338486212,1726696240899,-1100.0,0.00013,2]
[338486214,1726696240910,-151.0,0.00013,2]
[338486216,1726696240921,-151.0,0.00013,2]
[338486218,1726696240935,-151.0,0.00013,2]
[338486220,1726696240945,-151.0,0.00013,2]
[338486222,1726696240959,-151.0,0.00013,2]
[338486224,1726696240969,-151.0,0.00013,2]
[338486226,1726696240980,-151.0,0.00013,2]
[338486228,1726696240991,-151.0,0.00013,2]
[338486231,1726696241002,-151.0,0.00013,2]
[338486233,1726696241012,-151.0,0.00013,2]
[338486235,1726696241023,-151.0,0.00013,2]
[338486237,1726696241034,-151.0,0.00013,2]
[338486239,1726696241044,-11725.08508599,0.00013,2]
[338486241,1726696241055,-229.385421,0.00013,2]
[338486243,1726696241065,-229.385421,0.00013,2]
[338486245,1726696241074,-229.385421,0.00013,2]
[338486247,1726696241085,-229.385421,0.00013,2]
[338486249,1726696241094,-151.0,0.00013,2]
[338486251,1726696241104,-506.775322,0.00013,2]
[338486253,1726696241114,-506.775322,0.00013,2]
[338486255,1726696241123,-177.510334,0.00013,2]
[338486257,1726696241134,-177.510334,0.00013,2]
[338486259,1726696241144,-212.07711,0.00013,2]
[338486261,1726696241153,-177.510334,0.00013,2]
[338486263,1726696241163,-154.438953,0.00013,2]
[338486265,1726696241172,-177.510334,0.00013,2]
[338486267,1726696241181,-154.438953,0.00013,2]
[338486269,1726696241191,-154.438953,0.00013,2]
[338486271,1726696241201,-154.438953,0.00013,2]
[338486273,1726696241211,-151.0,0.00013,2]
[338486275,1726696241221,-151.0,0.00013,2]
[338486277,1726696241230,-151.0,0.00013,2]
[338486279,1726696241241,-151.0,0.00013,2]
[338486281,1726696241250,-151.0,0.00013,2]
[338486283,1726696241259,-151.0,0.00013,2]
[338486286,1726696241270,-157.461217,0.00013,2]
[338486288,1726696241279,-151.0,0.00013,2]
[338486290,1726696241289,-151.0,0.00013,2]
[338486292,1726696241299,-151.0,0.00013,2]
[338486294,1726696241309,-151.0,0.00013,2]
[338486296,1726696241318,-151.0,0.00013,2]
[338486298,1726696241328,-151.0,0.00013,2]
[338486300,1726696241339,-151.0,0.00013,2]
[338486302,1726696241349,-151.0,0.00013,2]
[338486304,1726696241360,-151.0,0.00013,2]
[338486306,1726696241370,-151.0,0.00013,2]
[338486309,1726696241381,-151.0,0.00013,2]
[338486311,1726696241392,-151.0,0.00013,2]
[338486312,1726696241402,-2576.78985058,0.00013033,2]
[338486314,1726696241411,-172.64894956,0.00013186,2]
[338486316,1726696241421,-2576.78985058,0.00013267,2]
[338486318,1726696241432,-355.0,0.000133,2]
[338486320,1726696241442,-229.48,0.00013431,2]
[338486322,1726696241452,-172.64894956,0.00013471,2]
[338486324,1726696241462,-211.42,0.00013473,2]
[338486326,1726696241471,-1000.0,0.00013495,2]
[338486328,1726696241481,-2576.78985058,0.000135,2]
[338486330,1726696241495,-719.0,0.000135,2]
[338486332,1726696241504,-255.0,0.00013529,2]
[338486334,1726696241515,-500.0,0.00013699,2]
[338486336,1726696241526,-2000.0,0.00013699,2]
[338486338,1726696241536,-150.0,0.00013699,2]
[338486340,1726696241547,-151.0,0.00013699,2]
[338486342,1726696241558,-151.0,0.00013699,2]
[338486344,1726696241568,-2576.78985058,0.00013733,2]
[338486346,1726696241578,-172.64894956,0.00013757,2]
[338486348,1726696241588,-2000.0,0.00013821,2]
[338486350,1726696241598,-500.0,0.00013873,2]
[338486352,1726696241609,-290.271,0.00013888,2]
[338486354,1726696241619,-1916.0,0.00013888,2]
[338486356,1726696241629,-793.826,0.00013888,2]
[338486358,1726696241638,-150.0,0.00013888,2]
[338486360,1726696241648,-1141.0,0.00013888,2]
[338486362,1726696241659,-267.921,0.00013888,2]
[338486364,1726696241668,-150.0,0.00013888,2]
[338486366,1726696241678,-152.649062,0.000139,2]
[338486368,1726696241689,-151.0,0.000139,2]
[338486370,1726696241698,-151.0,0.000139,2]
[338486372,1726696241708,-317.83342,0.000139,2]
[338486374,1726696241718,-317.83342,0.000139,2]
[338486376,1726696241727,-151.0,0.000139,2]
[338486378,1726696241737,-210.608779,0.000139,2]
[338486380,1726696241746,-151.0,0.000139,2]
[338486382,1726696241756,-151.0,0.000139,2]
[338486384,1726696241766,-256.879808,0.000139,2]
[338486386,1726696241777,-151.0,0.000139,2]
[338486388,1726696241787,-151.0,0.000139,2]
[338486390,1726696241798,-155.288962,0.000139,2]
[338486392,1726696241807,-151.0,0.000139,2]
[338486394,1726696241817,-151.0,0.000139,2]
[338486395,1726696241827,-151.0,0.000139,2]
[338486397,1726696241836,-151.0,0.000139,2]
[338486399,1726696241847,-151.0,0.000139,2]
[338486401,1726696241859,-240604.177828,0.000139,2]
[338486404,1726696241870,-151.0,0.000139,2]
[338486406,1726696241880,-151.0,0.000139,2]
[338486408,1726696241891,-180.80614,0.000139,2]
[338486410,1726696241901,-151.0,0.000139,2]
[338486412,1726696241910,-171.33323,0.000139,2]
[338486414,1726696241921,-151.0,0.000139,2]
[338486416,1726696241934,-500.0,0.00013904,2]
[338486417,1726696241944,-500.0,0.00013904,2]
[338486418,1726696241954,-2576.78985058,0.00013967,2]
[338486419,1726696241963,-500.0,0.0001399,2]
[338486420,1726696241973,-500.0,0.0001399,2]
[338486421,1726696241983,-570.45,0.0001399,2]
[338486422,1726696241993,-500.0,0.0001399,2]
[338486423,1726696242003,-500.0,0.0001399,2]
[338486424,1726696242012,-500.0,0.0001399,2]
[338486425,1726696242022,-500.0,0.0001399,2]
[338486426,1726696242034,-500.0,0.0001399,2]
[338486427,1726696242047,-616.11,0.0001399,2]
[338486428,1726696242056,-172.64894956,0.00014043,2]
[338486429,1726696242066,-150.0,0.00014059,2]
[338486430,1726696242076,-800.0,0.00014178,2]
[338486431,1726696242086,-326.79,0.00014192,2]
[338486432,1726696242096,-300.0,0.00014192,2]
[338486433,1726696242106,-428.04,0.00014192,2]
[338486434,1726696242116,-300.0,0.00014192,2]
[338486436,1726696242126,-300.0,0.00014192,2]
[338486437,1726696242136,-300.0,0.00014192,2]
[338486439,1726696242145,-428.04,0.00014192,2]
[338486441,1726696242155,-427.2,0.00014192,2]
[338486443,1726696242165,-2576.78985058,0.000142,2]
[338486445,1726696242175,-309.41,0.000143,2]
[338486447,1726696242187,-172.64894956,0.00014329,2]
[338486449,1726696242196,-400.0,0.000144,5]
[338486451,1726696242206,-150.0,0.0001442,2]
[338486453,1726696242215,-2576.78985058,0.00014433,2]
[338486455,1726696242225,-224.0,0.000145,2]
[338486457,1726696242234,-400.0,0.000145,5]
[338486459,1726696242244,-1000.0,0.00014521,2]
[338486460,1726696242254,-250.520715,0.00014521,2]
[338486462,1726696242263,-500.0,0.00014573,2]
[338486464,1726696242273,-150.0,0.00014573,2]
[338486466,1726696242283,-152.0,0.00014598,3]
[338486468,1726696242292,-535296.18801601,0.000146,2]
[338486471,1726696242309,-135151.95979913,0.000146,2]
[338486521,1726696242755,-5227.0184741,0.000146,2]
[338486584,1726696243367,-2971.4261541,0.000146,2]
[338486760,1726696245157,-1795.66259684,0.000146,2]
[338486763,1726696245176,-2339.99988896,0.000146,2]
[338486850,1726696248276,-535.01,0.000146,2]
[338486851,1726696248288,-89270.32908214,0.000146,2]
[338486852,1726696248299,-529.5997487,0.000146,2]
[338486853,1726696248311,-604.87839896,0.000146,2]
[338486854,1726696248324,-322.67802498,0.000146,2]
[338486855,1726696248335,-1583.93695145,0.000146,2]
[338486856,1726696248361,-332.78,0.000146,2]
[338486857,1726696248376,-389.71569304,0.000146,2]
[338486858,1726696248388,-1144.25759762,0.000146,2]
[338486859,1726696248406,-449580.24609434,0.000146,2]
[338486860,1726696248418,-1131.90187909,0.000146,2]
[338486861,1726696248429,-401.55638336,0.000146,2]
[338486862,1726696260864,500.0,0.00011164,2]
[338486863,1726696270489,500.0,0.00011164,2]
[338486864,1726696272095,500.0,0.00012534,2]
[338486865,1726696272744,600.0,0.00011164,2]
[338486866,1726696274306,600.0,0.00012534,2]
[338486867,1726696354717,500.0,0.00011164,2]
[338486868,1726696359080,500.0,0.00011164,2]
[338486869,1726696384196,500.0,0.00011164,2]
[338486870,1726696385801,500.0,0.00012534,2]
[338486871,1726696396120,167.08,0.00011978,2]
[338486872,1726696413493,321.57,0.00012711,2]
[338486873,1726696670779,800.0,0.00010068,2]
[338486874,1726696672367,800.0,0.00011438,2]
[338486875,1726696709721,272.46,0.00010959,2]
[338486876,1726696856853,450.98,0.00011222,2]
[338486877,1726697013497,185.64,0.00012711,2]
[338486878,1726697043380,250.0,0.00012711,2]
[338486879,1726697113508,746.12,0.00012701,2]
[338486882,1726697163519,250.0,0.00012661,2]
[338486883,1726697179973,1000.0,0.00012708,2]
[338486884,1726697213937,162.38,0.00010959,2]
[338486885,1726697359509,446.41,0.00011083,2]
[338486889,1726697405993,171.93780961,0.00012668,2]
[338486891,1726697410987,171.93780961,0.00012688,2]
[338486892,1726697415956,171.93780961,0.00012708,2]
[338486907,1726697437747,-191.05,0.00012751,2]
[338486908,1726697437757,-250.0,0.00012768,2]
[338486909,1726697437767,-800.0,0.00012808,2]
[338486910,1726697437776,-43.51955671,0.00013079,2]
[338486911,1726697437791,-119.22044329,0.00013079,2]
[338486912,1726697437802,-162.74,0.00013087,2]
[338486913,1726697437812,-162.74,0.00013094,2]
[338486914,1726697437822,-242.43,0.000131,2]
[338486915,1726697437833,-162.74,0.00013101,2]
[338486916,1726697437842,-162.74,0.00013108,2]
[338486917,1726697437852,-162.74,0.00013116,2]
[338486918,1726697437862,-2701.73,0.00013116,2]
[338486919,1726697437871,-437.89973037,0.00013117,2]
[338486941,1726697438223,-2542.52686277,0.00013117,2]
[338486943,1726697438235,-815.0,0.00013117,2]
[338486945,1726697438247,-1773.20340686,0.00013117,2]
[338486947,1726697438258,-96.72431735,0.00013117,2]
[338486949,1726697438270,-483.47568265,0.00013117,2]
[338486951,1726697438281,-150.0,0.00013118,2]
[338486953,1726697438291,-1589.52431734,0.00013118,2]
[338486958,1726697438330,-587.5728,0.00013118,2]
[338486993,1726697439666,-1086.89506881,0.00013118,2]
[338486994,1726697439746,-344.62556429,0.00013118,2]
[338486995,1726697439758,-574.13513624,0.00013118,2]
[338486996,1726697439866,-1052.5847708,0.00013118,2]
[338486997,1726697439878,-2108.69,0.00013118,2]
[338486998,1726697439891,-900.71549999,0.00013118,2]
[338486999,1726697439902,-1043.21965598,0.00013118,2]
[338487000,1726697439921,-676.78766256,0.00013118,2]
[338487001,1726697439932,-267.91952399,0.00013118,2]
[338487002,1726697439941,-818.84,0.00013118,2]
[338487003,1726697439951,-162.74,0.00013123,2]
[338487004,1726697439961,-162.74,0.0001313,2]
[338487006,1726697439970,-162.74,0.00013137,2]
[338487007,1726697439979,-162.74,0.00013145,2]
[338487008,1726697439989,-1000.0,0.00013186,2]
[338487009,1726697439998,-1000.0,0.00013186,2]
[338487010,1726697440008,-1000.0,0.00013186,2]
[338487011,1726697440017,-1000.0,0.00013186,2]
[338487012,1726697440027,-1000.0,0.00013186,2]
[338487014,1726697440037,-1000.0,0.00013186,2]
[338487016,1726697440046,-1000.0,0.00013186,2]
[338487017,1726697440055,-1000.0,0.00013186,2]
[338487018,1726697440064,-500.0,0.000133,2]
[338487019,1726697440074,-204.16,0.00013307,2]
[338487020,1726697440098,-446.41,0.00013347,2]
[338487021,1726697440108,-150.0,0.00013699,2]
[338487022,1726697440118,-153.31517476,0.00013904,2]
[338487023,1726697440127,-500.0,0.00013904,2]
[338487024,1726697440137,-500.0,0.00013904,2]
[338487025,1726697440146,-2984.3132252,0.00014,2]
[338487026,1726697440156,-300.0,0.00014,2]
[338487027,1726697440166,-150.0,0.00014019,2]
[338487028,1726697440175,-150.0,0.00014048,2]
[338487029,1726697440184,-150.803,0.00014048,2]
[338487030,1726697440194,-225.099,0.00014048,2]
[338487031,1726697440206,-150.0,0.00014059,2]
[338487032,1726697440216,-157.29,0.00014068,2]
[338487033,1726697440225,-800.0,0.00014178,2]
[338487034,1726697440235,-4390.45043,0.0001425,2]
[338487035,1726697440244,-1000.0,0.00014296,2]
[338487036,1726697440255,-185.64,0.000143,2]
[338487037,1726697440264,-1000.0,0.000143,2]
[338487038,1726697440273,-150.0,0.00014329,2]
[338487039,1726697440285,-150.0,0.0001442,2]
[338487040,1726697440295,-150.0,0.00014462,2]
[338487041,1726697440304,-500.0,0.00014483,2]
[338487042,1726697440314,-200.0,0.00014483,2]
[338487043,1726697440324,-1364.79964605,0.0001449,2]
[338487044,1726697440336,-1064.4559759,0.0001449,2]
[338487153,1726697445404,-5070.74437805,0.0001449,2]
[338487154,1726697445414,-166.198302,0.000145,2]
[338487155,1726697445424,-4736.81002441,0.000145,2]
[338487156,1726697445434,-310.39588909,0.000145,2]
[338487157,1726697445443,-1000.0,0.00014521,2]
[338487158,1726697445453,-240.821837,0.00014521,2]
[338487159,1726697445463,-300.0,0.00014552,2]
[338487160,1726697445472,-500.0,0.00014573,2]
[338487161,1726697445482,-263.2636356,0.0001459,2]
[338487162,1726697445491,-158.53,0.0001459,2]
[338487163,1726697445501,-21786.44609997,0.000146,2]
[338487174,1726697446399,-22528.8526588,0.000146,2]
[338487175,1726697446412,-5130.95572728,0.000146,2]
[338487176,1726697446423,-2350.89459176,0.000146,2]
[338487177,1726697446436,-1448.63415379,0.000146,2]
[338487178,1726697449202,-877.60613837,0.000146,2]
[338487179,1726697449216,-1507.29,0.000146,2]
[338487180,1726697449227,-1039.9999,0.000146,2]
[338487181,1726697449239,-498.7999998,0.000146,2]
[338487182,1726697449252,-2721.87978134,0.000146,2]
[338487183,1726697449266,-4650.0,0.000146,2]
[338487184,1726697449288,-4720.74530425,0.000146,2]
[338487185,1726697449300,-1951.24999987,0.000146,2]
[338487186,1726697449312,-12101.7552,0.000146,2]
[338487187,1726697449323,-666.41,0.000146,2]
[338487188,1726697449891,-153.40326017,0.00014505,2]
[338487189,1726697449901,-18788.42516647,0.000146,2]
[338487190,1726697449919,-215110.53511958,0.000146,2]
[338487191,1726697449931,-4200.58673414,0.000146,2]
[338487192,1726697449946,-599.38775637,0.000146,2]
[338487193,1726697469871,151.0,0.00010959,2]
[338487194,1726697470856,298.0,0.00010959,2]
[338487195,1726697498209,7.7439824,0.00011164,2]
[338487196,1726697498240,492.2560176,0.00011164,2]
[338487197,1726697499818,500.0,0.00012534,2]
[338487198,1726697518667,198.94,0.00012711,2]
[338487199,1726697526780,500.0,0.00011164,2]
[338487200,1726697529642,700.0,0.00010068,2]
[338487201,1726697531609,700.0,0.00011438,2]
[338487202,1726697696165,400.0,0.00012711,2]
[338487203,1726697700801,176.97,0.00010959,2]
[338487204,1726697715306,250.0,0.00012711,2]
[338487205,1726697749059,1050.0,0.00011,2]
[338487206,1726697827156,500.0,0.00011164,2]
[338487207,1726697847772,700.0,0.00010068,2]
[338487208,1726697850142,700.0,0.00011438,2]
[338487209,1726697872284,500.0,0.00011164,2]
[338487210,1726697873883,500.0,0.00012534,2]
[338487211,1726697913522,420.54,0.00010793,2]
[338487213,1726698139099,751.0,0.00012711,2]
[338487214,1726698170348,297.85,0.00012711,2]
[338487215,1726698208172,153.26,0.00010959,2]
[338487216,1726698218589,250.0,0.00012711,2]
[338487217,1726698237754,924.98,0.00012711,3]
[338487218,1726698261501,1385.0,0.00012711,2]
[338487219,1726698279866,-191.057044,0.00012744,2]
[338487226,1726698349857,785.94,0.000126,2]
[338487227,1726698354149,442.6668699,6.94e-05,2]
[338487228,1726698407390,211.94,0.00010959,2]
[338487229,1726698418171,176.61,0.00010959,2]
[338487230,1726698438994,883.09,0.00010959,2]
[338487231,1726698459314,527.37,0.00012711,2]
[338487232,1726698464434,427.28,0.00010793,2]
[338487234,1726698574662,-288.84772373,0.00012744,2]
[338487235,1726698575342,-269.84392211,0.00012744,2]
[338487236,1726698575793,-241.94340116,0.00012744,2]
[338487237,1726698576303,-156.35,0.00012744,2]
[338487238,1726698576791,-150.0,0.00012744,2]
[338487239,1726698577532,-150.0,0.00012744,2]
[338487241,1726698578029,-150.0,0.00012744,2]
[338487242,1726698578555,-150.0,0.00012744,2]
[338487243,1726698579257,-150.0,0.00012744,2]
[338487244,1726698580955,-150.0,0.00012744,2]
[338487245,1726698581462,-150.0,0.00012744,2]
[338487246,1726698582016,-150.0,0.00012744,2]
[338487247,1726698582826,-150.0,0.00012744,2]
[338487248,1726698583743,-150.0,0.00012744,2]
[338487249,1726698584642,-11.29133,0.00012744,2]
[338487254,1726698629278,600.0,0.00011164,2]
[338487255,1726698630881,600.0,0.00012534,2]
[338487264,1726698631906,-241.9434,0.0001278,2]
[338487266,1726698631915,-180.90527091,0.000128,2]
[338487268,1726698631925,-150.0,0.00012857,2]
[338487270,1726698631935,-1246.22989063,0.00012857,2]
[338487272,1726698631956,-306.99922809,0.00012857,2]
[338487274,1726698631972,-162.39,0.0001287,2]
[338487275,1726698631989,-137.10131897,0.0001287,2]
[338487276,1726698632011,-540.64868103,0.0001287,2]
[338487277,1726698632029,-677.75,0.0001287,2]
[338487278,1726698632046,-677.75,0.0001287,2]
[338487279,1726698632061,-677.75,0.0001287,2]
[338487280,1726698632079,-677.75,0.0001287,2]
[338487281,1726698632093,-246.45263349,0.0001287,2]
[338487298,1726698632297,-431.29736651,0.0001287,2]
[338487300,1726698632311,-677.75,0.0001287,2]
[338487303,1726698632325,-677.75,0.0001287,2]
[338487304,1726698632339,-677.75,0.0001287,2]
[338487305,1726698632352,-677.75,0.0001287,2]
[338487306,1726698632366,-677.75,0.0001287,2]
[338487307,1726698632381,-677.75,0.0001287,2]
[338487308,1726698632395,-677.75,0.0001287,2]
[338487309,1726698632409,-677.75,0.0001287,2]
[338487310,1726698632423,-677.75,0.0001287,2]
[338487311,1726698632439,-677.75,0.0001287,2]
[338487312,1726698632453,-677.75,0.0001287,2]
[338487313,1726698632467,-677.75,0.0001287,2]
[338487314,1726698632482,-677.75,0.0001287,2]
[338487315,1726698632496,-677.75,0.0001287,2]
[338487316,1726698632510,-300.0,0.00012879,2]
[338487317,1726698632524,-150.0,0.00012879,2]
[338487318,1726698632538,-40563.89695094,0.0001288,2]
[338487319,1726698632555,-1740.0,0.0001288,2]
[338487320,1726698632572,-1032.01313129,0.0001288,2]
[338487321,1726698632588,-2810.31557355,0.0001288,2]
[338487322,1726698632814,-989.75957596,0.0001288,2]
[338487323,1726698632831,-250.33780553,0.0001288,2]
[338487324,1726698632849,-3584.9629918,0.0001288,2]
[338487325,1726698632865,-871.5527439,0.0001288,2]
[338487326,1726698632882,-2737.33492461,0.0001288,2]
[338487327,1726698632900,-1587.35583697,0.0001288,2]
[338487328,1726698632917,-499.60047608,0.0001288,2]
[338487329,1726698632933,-356.88107954,0.0001288,2]
[338487330,1726698632950,-1280.01432601,0.0001288,2]
[338487331,1726698632967,-8568.89612749,0.0001288,2]
[338487332,1726698636694,1059.64195389,0.00012622,2]
[338487333,1726698637902,-2216.68024884,0.0001288,2]
[338487334,1726698637914,-255.0,0.0001288,2]
[338487335,1726698637925,-3791.46814228,0.0001288,2]
[338487336,1726698637943,-1094.21,0.0001288,2]
[338487337,1726698638018,-4012.44382823,0.0001288,2]
[338487338,1726698638094,-652.16989619,0.0001288,2]
[338487339,1726698638108,-1197.7017767,0.0001288,2]
[338487340,1726698638119,-283.83287331,0.0001288,2]
[338487341,1726698638130,-2107.34051107,0.0001288,2]
[338487343,1726698638149,-11135.00961967,0.0001288,2]
[338487531,1726698639957,-4580.74187796,0.0001288,2]
[338487532,1726698639988,-2778.37187532,0.0001288,2]
[338487533,1726698639999,-3479.41639835,0.0001288,2]
[338487534,1726698640010,-522.77982189,0.0001288,2]
[338487535,1726698640136,-27750.57478967,0.0001288,2]
[338487537,1726698640148,-1395.88500602,0.0001288,2]
[338487539,1726698640162,-287.74691313,0.0001288,2]
[338487541,1726698640173,-2124.9815872,0.0001288,2]
[338487543,1726698640185,-586.85529695,0.0001288,2]
[338487776,1726698644853,-254.7290866,0.0001288,2]
[338487777,1726698644872,-500.0,0.0001288,2]
[338487778,1726698644883,-3643.341797,0.0001288,2]
[338487779,1726698644902,-3031.18915911,0.0001288,2]
[338487780,1726698646254,-49455.57447898,0.0001288,2]
[338487781,1726698649028,159.87,0.00012711,2]
[338487782,1726698654588,500.0,0.00011164,2]
[338487783,1726698704971,760.52,0.0001258,2]
[338487784,1726698720171,165.56,0.00012711,2]
[338487785,1726698729204,1472.84,0.00012572,2]
[338487786,1726698731897,1548.95,0.0001258,2]
[338487787,1726698747884,600.0,0.00011164,2]
[338487788,1726698749579,600.0,0.00012534,2]
[338487789,1726698758422,156.35,0.00010959,2]
[338487790,1726698812412,320.0,0.0001258,2]
[338487791,1726698838223,500.0,0.00011164,2]
[338487792,1726698841040,3300.73271406,0.0001266,2]
[338487793,1726698863246,200.0,0.00012593,2]
[338487794,1726698864401,600.0,0.00011164,2]
[338487795,1726698866769,600.0,0.00012534,2]
[338487796,1726698878594,250.0,0.00012533,2]
[338487797,1726698883453,174.54,0.00010169,2]
[338487798,1726698886526,500.0,0.00011164,2]
[338487799,1726698964514,250.0,0.00012711,2]
[338487800,1726698991640,28382.2038,0.0001268,2]
[338487801,1726698994273,563.0,0.00012534,2]
[338487802,1726699006966,479.6,0.00012711,2]
[338487803,1726699087674,4895.82,0.00012711,2]
[338487804,1726699104637,458.99,0.00010793,2]
[338487805,1726699159608,176.8275,0.0001268,2]
[338487806,1726699177545,397.39,0.00012315,2]
[338487807,1726699218429,401.94,0.0001268,2]
[338487808,1726699267317,157.24,0.00010959,2]
[338487809,1726699342306,744.0,0.00012528,2]
[338487810,1726699360416,154.0,0.00012528,2]
[338487811,1726699377525,588.9124,0.0001268,2]
[338487812,1726699390292,2122.6584,0.0001268,2]
[338487813,1726699393265,1121.60690154,0.0001268,2]
[338487814,1726699430415,180.90527089,0.0001268,2]
[338487815,1726699445020,1000.0,0.0001268,2]
[338487816,1726699493674,250.0,0.00012413,2]
[338487817,1726699498192,239.8,0.00012413,2]
[338487818,1726699509553,150.0,0.0001274,2]
[338487819,1726699523359,150.0,0.00011688,2]
[338487820,1726699523712,150.0,0.00012012,2]
[338487821,1726699524020,150.0,0.00012337,2]
[338487822,1726699524355,150.0,0.00012662,2]
[338487826,1726699552622,1050.0,0.00011,2]
[338487827,1726699627985,436.04,0.00010449,2]
[338487828,1726699628290,436.04,0.00012713,2]
[338487863,1726699818502,534.964,0.0001268,2]
[338487866,1726699832060,-270.7366813,0.0001276,2]
[338487867,1726699832166,-572.13348406,0.0001276,2]
[338487868,1726699832178,-419.14316796,0.0001276,2]
[338487869,1726699832188,-4842.74599427,0.0001276,2]
[338487870,1726699832199,-5916.8581,0.0001278,2]
[338487871,1726699832210,-7048.5904,0.0001278,2]
[338487872,1726699832222,-268.0911,0.0001278,2]
[338487873,1726699832233,-905.7611,0.0001278,2]
[338487874,1726699832243,-1000.0,0.0001278,2]
[338487875,1726699832254,-12119.01803723,0.0001278,2]
[338487876,1726699832296,-685.05424735,0.0001278,2]
[338487877,1726699832349,-717.58091781,0.0001278,2]
[338487886,1726699838149,-768.23091752,0.0001278,2]
[338487887,1726699838160,-371.59199,0.0001278,2]
[338487888,1726699838172,-409.59262913,0.0001278,2]
[338487889,1726699838183,-404.1190982,0.0001278,2]
[338487893,1726699838194,-5000.0,0.0001278,2]
[338487900,1726699839347,-11714.8206334,0.0001278,2]
[338487901,1726699839362,-4713.59341823,0.0001278,2]
[338487902,1726699839373,-476.81295156,0.0001278,2]